[Event "39th Muensterland Open 2022"]
[Site "Muenster"]
[Date "2022.10.02"]
[Round "1.1"]
[White "Bigott, Martin"]
[Black "Holtel, Jasper"]
[Result "0-1"]
[ECO "A05"]
[WhiteElo "1814"]
[BlackElo "2406"]
[Annotator "TA"]
[PlyCount "36"]
[EventDate "2022.10.01"]
[EventType "swiss"]
[EventCountry "GER"]
[SourceTitle "playchess.com"]
[Source "ChessBase"]
[SourceQuality "1"]
[TimeControl "40/5400+30:1800+30"]

{[%evp 16,36,-39,-44,-44,-54,-48,-63,-31,-87,-78,-72,-71,-122,-111,-168,-154,-206,-205,-205,-215,-410,-382]} 1. d4 {[%emt 0:00:02]} Nf6 {[%emt 0:00:17]} 2. Nf3 {[%emt 0:00:27]} g6 {[%emt 0:00:07]} 3. g3 {[%emt 0:00:58]} Bg7 {[%emt 0:00:07]} 4. Bg2 {[%emt 0:00:04]} d5 {[%emt 0:00:09]} 5. O-O {[%emt 0:01:01]} O-O {[%emt 0:00:19]} 6. b3 {[%emt 0:01:56]} c5 {[%emt 0:00:14]} 7. Bb2 {[%emt 0:00:05]} cxd4 {[%emt 0:00:28]} 8. Bxd4 {[%emt 0:00:01]} Nc6 {[%emt 0:01:03]} 9. Bb2 {[%emt 0:00:01]} Qc7 {[%emt 0:01:27] A05: Réti Opening: 1 Nf3 Nf6.} 10. Nbd2 {[%emt 0:01:15]} Rd8 {[%emt 0:01:23]} 11. e3 {[%emt 0:02:04]} e5 {[%emt 0:08:27] [#] Black is slightly better.} 12. c3 $146 {[%emt 0:03:57]} ({Better is} 12. c4 $15) ({Predecessor:} 12. h3 Bf5 13. Rc1 d4 14. exd4 exd4 15. Nh4 Be6 16. c4 Nb4 17. Ra1 Nd3 18. Ba3 {0-1 (45) Skorodelov,S (2228)-Khayrullin,D (2350) Moscow 2020}) 12... e4 {[%emt 0:06:10] [#] White must now prevent ...Bg4. Black is more active.} 13. Nd4 {[%emt 0:00:24]} Bg4 {[%emt 0:02:08]} 14. f3 {[%emt 0:01:44]} ({White should try} 14. Qe1) 14... exf3 $17 {[%emt 0:00:22]} 15. Bxf3 {[%emt 0:00:21]} (15. N2xf3 $17 {is a better defense.} Ne4 16. Qc1) 15... Ne5 $19 {[%emt 0:01:52]} 16. Be2 {[%emt 0:03:18]} (16. Bxg4 $17 Nexg4 17. Qf3) 16... h5 {[%emt 0:05:53]} 17. N2f3 {[%emt 0:00:18]} Re8 {[%emt 0:07:58]} 18. Bb5 $2 {[%emt 0:03:53] [#]} (18. Nxe5 Qxe5 19. Qd3) 18... Nxf3+ {[%emt 0:00:47] White did not feel at home in the position after the opening.  Weighted Error Value: White=0.48/Black=0.04 (flawless)} 0-1

[Event "39th Muensterland Open 2022"]
[Site "Muenster"]
[Date "2022.10.02"]
[Round "1.2"]
[White "Koellner, Ruben Gideon"]
[Black "Koch, Till"]
[Result "1-0"]
[ECO "D03"]
[WhiteElo "2401"]
[BlackElo "1814"]
[Annotator "TA"]
[PlyCount "43"]
[EventDate "2022.10.01"]
[EventType "swiss"]
[EventCountry "GER"]
[SourceTitle "playchess.com"]
[Source "ChessBase"]
[SourceQuality "1"]
[TimeControl "40/5400+30:1800+30"]

{[%evp 14,43,40,28,43,43,44,46,54,52,42,33,50,24,26,23,68,68,131,118,114,48,130,130,246,225,599,591,660,679,668,645]} 1. d4 {[%emt 0:00:03]} Nf6 {[%emt 0:00:32]} 2. Bg5 {[%emt 0:00:06]} d5 {[%emt 0:01:24]} 3. e3 {[%emt 0:00:06]} e6 {[%emt 0:03:05]} 4. Nd2 {[%emt 0:00:09]} c5 {[%emt 0:02:59]} 5. c3 {[%emt 0:00:06]} cxd4 {[%emt 0:06:23]} 6. exd4 {[%emt 0:00:08]} Be7 {[%emt 0:00:32]} 7. Bd3 {[%emt 0:00:14]} O-O {[%emt 0:00:59]} 8. Ngf3 {[%emt 0:00:27]} h6 {[%emt 0:04:27] D03: 1 d4 d5 2 Nf3 Nf6 3 Bg5, including Torre Attack with early ...d5.} 9. Bh4 {[%emt 0:00:52]} b6 {[%emt 0:05:03]} 10. Qe2 {[%emt 0:02:23]} Nbd7 {[%emt 0:03:46] White is slightly better.} 11. O-O {[%emt 0:00:55] [#]} Re8 $146 {[%emt 0:05:27]} ({Predecessor:} 11... Bb7 12. h3 Ne8 13. Bxe7 Qxe7 14. Rfe1 Nef6 15. Ne5 Rac8 16. Ndf3 Rfd8 17. Rac1 Ne8 18. Ng4 {1-0 (63) Anders,H-Keilholz,S freechess.de 2017}) 12. Ne1 {[%emt 0:03:55]} Bd6 {[%emt 0:11:54]} 13. f4 {[%emt 0:01:05] Prevents e5.} Qc7 $1 {[%emt 0:00:45]} 14. g3 {[%emt 0:02:24]} Bb7 {[%emt 0:04:57]} 15. Nef3 {[%emt 0:02:27]} Nf8 {[%emt 0:06:30]} (15... Qc8 $14) 16. Bxf6 $16 {[%emt 0:05:03]} gxf6 {[%emt 0:00:04] [#]} 17. Nh4 {[%emt 0:00:10] White is more active.} ({Better is} 17. Ne5 $1 $16 {[%mdl 512]}) 17... f5 {[%emt 0:03:36] [#] Against Qg4+} (17... Nh7 $1 $14) 18. Qh5 $1 {[%emt 0:02:32]} Kg7 {[%emt 0:00:27]} (18... Nh7 $16 {was called for.}) 19. Bxf5 $1 $18 {[%emt 0:12:07][%cal Oa1e1] And now Rae1! would win.} exf5 $2 {[%emt 0:03:08]} (19... Nd7 {is more resistant.}) 20. Nxf5+ {[%emt 0:00:07] White is clearly winning.} Kg8 {[%emt 0:00:27]} 21. Nxh6+ {[%emt 0:00:58] Pair of Knights!} Kg7 {[%emt 0:00:08]} 22. Qg5+ {[%emt 0:09:44] Weighted Error Value: White=0.09 (flawless) /Black=0.78} 1-0

[Event "39th Muensterland Open 2022"]
[Site "Muenster"]
[Date "2022.10.02"]
[Round "1.3"]
[White "Botvinnik, Alexey"]
[Black "Pfreundt, Jakob"]
[Result "0-1"]
[ECO "B00"]
[WhiteElo "1813"]
[BlackElo "2401"]
[Annotator "TA"]
[PlyCount "52"]
[EventDate "2022.10.01"]
[EventType "swiss"]
[EventCountry "GER"]
[SourceTitle "playchess.com"]
[Source "ChessBase"]
[SourceQuality "1"]
[TimeControl "40/5400+30:1800+30"]

{[%evp 15,52,27,30,16,24,-22,-36,-67,-68,-56,-52,-58,-66,-56,-26,-70,-46,-87,-56,-104,-97,-97,-91,-159,-160,-360,-353,-475,-484,-615,-621,-790,-772,-729,-617,-1660,-1340,-29993,-29991]} 1. e4 {[%emt 0:00:03]} Nc6 {[%emt 0:01:08]} 2. Nf3 {[%emt 0:00:14]} d6 {[%emt 0:01:08]} 3. d4 {[%emt 0:00:51]} Nf6 {[%emt 0:00:22]} 4. Nc3 {[%emt 0:01:34]} g6 {[%emt 0:00:25]} 5. Bb5 {[%emt 0:06:12]} a6 {[%emt 0:03:56]} 6. Bxc6+ {[%emt 0:02:16]} bxc6 {[%emt 0:00:09]} 7. O-O {[%emt 0:01:25]} Bg7 {[%emt 0:00:20]} 8. h3 {[%emt 0:01:57]} O-O {[%emt 0:00:44]} 9. e5 {[%emt 0:03:24] B00: Queen's Fianchetto Defence, Nimzowitsch Defence.} Nd5 {[%emt 0:01:53] [#]} 10. exd6 $146 {[%emt 0:03:01]} (10. Bd2 $142) ({Predecessor:} 10. Nxd5 cxd5 11. Bf4 Rb8 12. b3 f6 13. Bg3 Bf5 14. Re1 Qd7 15. Qe2 Qc6 16. e6 Be4 {0-1 (48) Burg,T (2517)-Bauer,C (2629) Belgium 2019}) 10... cxd6 $11 {[%emt 0:01:19]} 11. Nxd5 {[%emt 0:03:14] Black is slightly better.} cxd5 {[%emt 0:00:07]} 12. Re1 {[%emt 0:03:18]} f6 {[%emt 0:03:56]} 13. Be3 {[%emt 0:10:09]} e5 {[%emt 0:00:54]} 14. Qd2 {[%emt 0:00:23]} g5 {[%emt 0:05:19]} 15. Nh2 {[%emt 0:05:13]} h6 {[%emt 0:04:34]} 16. f3 {[%emt 0:03:17][%cal Oh3h4]} Be6 {[%emt 0:02:09]} 17. g4 {[%emt 0:02:52]} (17. h4 $15) 17... Qd7 {[%emt 0:02:43]} 18. Rad1 {[%emt 0:07:44][%cal Oc2c4]} Rac8 {[%emt 0:01:16]} 19. Qd3 {[%emt 0:00:58]} (19. c3 $142) 19... f5 $17 {[%emt 0:01:14][%cal Bf6f5,Bf5g4,Bg4h3][%mdl 32] ...e4 is the strong threat.} 20. b3 $2 {[%emt 0:04:16] [#]} (20. dxe5 $17 {is a better defense.} dxe5 21. c3) 20... e4 $19 {[%emt 0:02:03]} 21. Qe2 {[%emt 0:02:01]} exf3 {[%emt 0:01:28]} 22. Nxf3 {[%emt 0:07:07]} fxg4 {[%emt 0:00:19]} 23. Nxg5 {[%emt 0:02:27]} hxg5 {[%emt 0:00:10]} 24. Bxg5 {[%emt 0:00:05]} Bf5 {[%emt 0:01:06]} 25. Qxa6 {[%emt 0:02:37]} Be4 {[%emt 0:00:53]} 26. c4 {[%emt 0:00:11]} gxh3 {[%emt 0:00:29] Weighted Error Value: White=1.23/Black=0.51} 0-1

[Event "39th Muensterland Open 2022"]
[Site "Muenster"]
[Date "2022.10.02"]
[Round "1.4"]
[White "Scholz, Christian"]
[Black "Buchaeckert, Juergen"]
[Result "1-0"]
[ECO "D83"]
[WhiteElo "2338"]
[BlackElo "1811"]
[Annotator "TA"]
[PlyCount "41"]
[EventDate "2022.10.01"]
[EventType "swiss"]
[EventCountry "GER"]
[SourceTitle "playchess.com"]
[Source "ChessBase"]
[SourceQuality "1"]
[TimeControl "40/5400+30:1800+30"]

{[%evp 13,41,13,40,45,122,129,127,121,140,116,132,118,175,168,190,168,232,160,245,188,244,247,303,273,300,262,472,473,804,781]} 1. d4 {[%emt 0:00:03]} Nf6 {[%emt 0:00:33]} 2. c4 {[%emt 0:00:05]} g6 {[%emt 0:00:13]} 3. Nc3 {[%emt 0:00:05]} d5 {[%emt 0:00:33]} 4. Bf4 {[%emt 0:00:09]} Bg7 {[%emt 0:00:41]} 5. e3 {[%emt 0:00:06]} O-O {[%emt 0:03:01]} 6. Rc1 {[%emt 0:00:07]} c5 {[%emt 0:01:34]} 7. dxc5 {[%emt 0:00:21]} Qa5 {[%emt 0:12:00]} 8. cxd5 {[%emt 0:00:07] D83: Grünfeld: 4 Bf4 Bg7 5 e3 0-0.} Qxc5 {[%emt 0:04:07] 8...Nbd7 is setting a new trend.} (8... Rd8 $14) 9. Nf3 $16 {[%emt 0:02:20]} Bg4 {[%emt 0:06:15]} 10. Be2 {[%emt 0:02:34] [#] White is better.} Nbd7 $146 {[%emt 0:08:37]} ({Predecessor:} 10... Rd8 11. e4 Qb4 12. Qb3 Qxb3 13. axb3 Nbd7 14. Be3 a6 15. O-O b5 16. b4 Ne8 17. Nd4 Bxe2 18. Ncxe2 Nd6 19. Nc6 Re8 20. Nc3 {½-½ (20) Timar,Z (2210)-Homoki,G (1890) Godollo 1996}) 11. h3 {[%emt 0:02:38]} Bxf3 {[%emt 0:01:15]} 12. Bxf3 {[%emt 0:00:05]} ({Resist} 12. gxf3 $6 Nh5 $14) 12... Nb6 {[%emt 0:05:12]} (12... Ne8 $16 {might work better.} 13. O-O Nd6) 13. O-O $18 {[%emt 0:00:39]} Rfd8 {[%emt 0:07:32]} 14. e4 {[%emt 0:04:31][%cal Be3e4,Be4e5][%mdl 32]} Ne8 {[%emt 0:07:33]} (14... Nfd7 $142 15. Qb3 Qa5) 15. Qe2 {[%emt 0:06:08]} Qa5 {[%emt 0:05:46]} (15... Qc4 $16 16. Qd2 Qb4) 16. Bg5 {[%emt 0:06:08]} Rd7 {[%emt 0:11:25]} (16... Bf6 $142) 17. e5 {[%emt 0:05:45]} Rc7 {[%emt 0:03:26]} 18. Bf4 {[%emt 0:05:58]} Rc4 {[%emt 0:04:18]} 19. Bd2 {[%emt 0:01:00]} Qc5 $2 {[%emt 0:01:35] [#]} (19... Rd4 {is a better defense.} 20. Be3 Rb4) 20. b3 {[%emt 0:00:36]} Rh4 {[%emt 0:04:13]} (20... Rb4 $142 21. Qe1 Rh4) 21. Nb5 {[%emt 0:00:38] Black did not feel at home in the position after the opening.  Weighted Error Value: White=0.23 (precise) /Black=0.54} 1-0

[Event "39th Muensterland Open 2022"]
[Site "Muenster"]
[Date "2022.10.02"]
[Round "1.5"]
[White "Becker, Peter"]
[Black "Schiffer, Kai-Uwe"]
[Result "0-1"]
[ECO "C78"]
[WhiteElo "1810"]
[BlackElo "2295"]
[Annotator "TA"]
[PlyCount "69"]
[EventDate "2022.10.01"]
[EventType "swiss"]
[EventCountry "GER"]
[SourceTitle "playchess.com"]
[Source "ChessBase"]
[SourceQuality "1"]
[TimeControl "40/5400+30:1800+30"]

{[%evp 11,69,0,6,-2,8,0,27,17,14,0,-9,2,5,0,37,21,25,-18,-4,-10,-11,-21,-10,-24,-38,-33,-16,-18,-36,-45,-45,-83,-80,-93,-80,-190,-129,-137,-69,-214,-67,-312,-211,-567,-540,-493,-415,-419,-398,-472,-383,-510,-452,-485,-320,-965,-828,-3645,-2726,-29983]} 1. e4 {[%emt 0:00:03]} e5 {[%emt 0:00:06]} 2. Nf3 {[%emt 0:00:04]} Nc6 {[%emt 0:00:06]} 3. Bb5 {[%emt 0:00:04]} a6 {[%emt 0:00:17]} 4. Ba4 {[%emt 0:00:05]} Nf6 {[%emt 0:00:08]} 5. O-O {[%emt 0:00:19]} Bc5 {[%emt 0:00:57]} 6. d3 {[%emt 0:02:35][%cal Bd2d3,Bd3d4][%mdl 32]} d6 {[%emt 0:03:28]} 7. h3 {[%emt 0:00:17] C78: Ruy Lopez: Archangelsk and Möller Defences.} O-O {[%emt 0:02:55]} 8. c3 {[%emt 0:02:03]} Ne7 {[%emt 0:01:32]} 9. Re1 {[%emt 0:05:30] White has an edge.} Ng6 {[%emt 0:01:08]} 10. d4 {[%emt 0:06:26]} Ba7 {[%emt 0:01:10]} 11. Nbd2 {[%emt 0:08:55]} h6 {[%emt 0:11:58]} 12. Nf1 {[%emt 0:08:33]} Nh5 {[%emt 0:07:48] [#]} 13. Be3 $146 {[%emt 0:11:35][%cal Of3e5]} ({Predecessor:} 13. Nxe5 dxe5 14. Qxh5 exd4 15. Bb3 Kh7 16. Rd1 Qf6 17. cxd4 Bxd4 18. Be3 Bxb2 19. Rab1 Be5 20. Rd2 Nf4 21. Qf3 Nxh3+ 22. Kh1 Qxf3 23. gxf3 f5 {0-1 (23) Rey,L (1688)-Marquez Rueda,B (2029) Santander 2013}) 13... Qf6 {[%emt 0:07:24]} 14. Qd2 {[%emt 0:15:34]} Nhf4 {[%emt 0:20:30][%cal Of4h3]} 15. Bd1 {[%emt 0:14:06]} Re8 {[%emt 0:05:48]} (15... c5 {is interesting.} 16. Ng3 Re8 17. a3 exd4 18. cxd4 cxd4 19. Bxd4 Ne5) 16. d5 {[%emt 0:05:21]} Nf8 {[%emt 0:03:20][%cal Bg6f8,Bf8d7,Bd7e5][%mdl 32]} 17. Bxf4 {[%emt 0:05:06]} exf4 {[%emt 0:00:22]} 18. N1h2 {[%emt 0:02:31]} h5 {[%emt 0:05:20]} 19. Nd4 {[%emt 0:02:48]} g6 {[%emt 0:00:09]} 20. Bc2 {[%emt 0:02:53]} Nd7 {[%emt 0:01:23]} 21. Re2 {[%emt 0:02:20]} Ne5 {[%emt 0:00:59]} 22. b3 {[%emt 0:01:29] Against Nc4} Bd7 {[%emt 0:01:19] Black is more active.} 23. Nhf3 {[%emt 0:00:28]} (23. Ree1 $17) 23... g5 {[%emt 0:02:04]} ({Black should play} 23... Bxd4 $19 24. Nxd4 c5 25. dxc6 bxc6) 24. Nxe5 $17 {[%emt 0:00:58]} Rxe5 {[%emt 0:02:46]} (24... dxe5 $17 25. Nf5 g4) 25. Nf3 {[%emt 0:01:02] [#]} (25. Kh1 $15) 25... Re7 {[%emt 0:00:27]} (25... g4 $1 $19 {[%cal Rg4f3]} 26. Nxe5 dxe5) 26. Qd3 {[%emt 0:00:33]} (26. Nd4 $15) 26... g4 {[%emt 0:04:13] Hoping for ...Bb5.} 27. hxg4 $2 {[%emt 0:01:14]} (27. Nd4) 27... hxg4 $19 {[%emt 0:00:06]} 28. e5 {[%emt 0:00:58]} dxe5 {[%emt 0:00:07]} 29. Qh7+ {[%emt 0:00:14]} Kf8 {[%emt 0:00:05]} 30. Nh4 {[%emt 0:00:25]} g3 {[%emt 0:01:45]} 31. Bg6 {[%emt 0:00:32]} Bxf2+ {[%emt 0:02:03]} 32. Kf1 {[%emt 0:00:50]} f3 {[%emt 0:08:19]} 33. gxf3 {[%emt 0:00:37]} (33. Re4 Bd4 34. gxf3 Bxc3 35. Rd1) 33... fxg6 {[%emt 0:01:23]} 34. Nxg6+ {[%emt 0:00:11] [#]} Qxg6 $3 {[%emt 0:00:06][%mdl 512]} 35. Qh4 {[%emt 0:00:00] Weighted Error Value: White=0.95/Black=0.44} (35. Qh8+ Kf7) 0-1

[Event "39th Muensterland Open 2022"]
[Site "Muenster"]
[Date "2022.10.02"]
[Round "1.6"]
[White "De Roda Husman, Juan"]
[Black "Pazdzior, Johann"]
[Result "1-0"]
[ECO "B18"]
[WhiteElo "2286"]
[BlackElo "1797"]
[Annotator "TA"]
[PlyCount "55"]
[EventDate "2022.10.01"]
[EventType "swiss"]
[EventCountry "GER"]
[SourceTitle "playchess.com"]
[Source "ChessBase"]
[SourceQuality "1"]
[TimeControl "40/5400+30:1800+30"]

{[%evp 13,55,5,12,12,10,14,21,19,22,0,0,7,6,12,5,10,39,13,33,29,37,23,25,27,16,27,25,10,6,5,39,31,43,18,358,364,481,423,493,449,444,438,702,575]} 1. e4 {[%emt 0:00:04] Let's Check Training} c6 {[%emt 1:31:00]} 2. d4 {[%emt 0:00:07]} d5 {[%emt 0:00:00]} 3. Nd2 {[%emt 0:00:19][%cal Bb1d2,Bd2e4,Be4g3][%mdl 32]} dxe4 {[%emt 0:00:00]} 4. Nxe4 {[%emt 0:00:16]} Bf5 {[%emt 0:00:00]} 5. Ng3 {[%emt 0:00:23]} Bg6 {[%emt 0:00:00]} 6. Bc4 {[%emt 0:00:24]} Nf6 {[%emt 0:00:00]} 7. N1e2 {[%emt 0:00:34]} e6 {[%emt 0:00:00]} 8. Nf4 {[%emt 0:01:21] B18: Classical Caro-Kann: 4...Bf5 sidelines.} Nd5 {[%emt 0:00:00] [#]} 9. Ngh5 $146 {[%emt 0:26:55]} ({Predecessor:} 9. Nxg6 hxg6 10. c3 Nd7 11. Bd2 Qc7 12. Qf3 N7f6 13. O-O-O O-O-O 14. Bg5 Be7 15. h4 {1-0 (38) Tiviakov,S (2677)-Timman,J (2571) Wijk aan Zee 2012 CBM 147 [Let's Check Training]}) 9... Bxh5 {[%emt 0:00:00]} 10. Nxh5 {[%emt 0:03:21] The position is equal.} g6 {[%emt 0:00:00]} 11. Ng3 {[%emt 0:04:19]} Bg7 {[%emt 0:00:00]} 12. c3 {[%emt 0:00:49]} Nd7 {[%emt 0:00:00]} 13. O-O {[%emt 0:02:51]} O-O {[%emt 0:00:00]} 14. Bb3 {[%emt 0:03:20]} Qh4 {[%emt 0:00:00]} 15. Qf3 {[%emt 0:10:43]} N5f6 {[%emt 0:00:00]} 16. h3 {[%emt 0:06:46]} e5 {[%emt 0:00:00][%cal Be6e5,Be5e4][%mdl 32]} 17. Be3 {[%emt 0:03:06][%cal Bc1e3,Be3f4,Bf4d6][%mdl 32]} e4 {[%emt 0:00:00]} 18. Qf4 {[%emt 0:02:10]} Qxf4 {[%emt 0:00:00]} 19. Bxf4 {[%emt 0:00:07]} Nd5 {[%emt 0:09:00]} 20. Bd6 {[%emt 0:00:41]} Rfe8 {[%emt 0:00:00]} 21. Rfe1 $36 {[%emt 0:03:12][%mdl 2048] White is more active.} e3 {[%emt 0:00:00]} (21... Re6 $5 {[%cal Re6d6]} 22. Ba3 (22. Nxe4 Rae8 $11) 22... Rae8 $11) 22. fxe3 {[%emt 0:01:03]} Nxe3 {[%emt 0:00:00]} 23. Re2 {[%emt 0:03:41] [#] Threatens to win with Rae1.} c5 $2 {[%emt 0:00:00][%mdl 8192] Loses the game.} (23... Nd5 $11 {and Black has nothing to worry.}) 24. dxc5 $18 {[%emt 0:01:11]} Rac8 {[%emt 0:00:00]} 25. Rae1 {[%emt 0:00:45] White is clearly winning.} Bh6 {[%emt 0:00:00]} 26. Nf1 {[%emt 0:00:34][%cal Bg3f1,Bf1e3,Be3d5][%mdl 32]} Nxc5 {[%emt 0:00:00][%cal Oc5d3]} 27. Nxe3 {[%emt 0:03:30]} Nd3 {[%emt 0:00:00] [#]} (27... Bf8 $142 28. Bxf8 Kxf8) 28. Nd5 $1 {[%emt 0:00:33] Weighted Error Value: White=0.11 (very precise) /Black=0.45} 1-0

[Event "39th Muensterland Open 2022"]
[Site "Muenster"]
[Date "2022.10.02"]
[Round "1.8"]
[White "Ollenberger, Roland"]
[Black "Berresheim, Nils"]
[Result "1-0"]
[ECO "B50"]
[WhiteElo "2256"]
[BlackElo "1792"]
[Annotator "TA"]
[PlyCount "117"]
[EventDate "2022.10.01"]
[EventType "swiss"]
[EventCountry "GER"]
[SourceTitle "playchess.com"]
[Source "ChessBase"]
[SourceQuality "1"]
[TimeControl "40/5400+30:1800+30"]

{[%evp 9,117,0,-4,-2,0,0,2,0,-7,0,-17,-4,-4,-10,-7,0,14,5,9,0,14,20,18,0,0,0,7,0,0,-85,-89,-84,-77,-119,0,-2,-16,-52,-62,-65,-44,-97,-111,-106,-83,-97,-55,-47,-72,-49,-8,-10,0,0,0,0,0,0,48,56,116,17,17,17,16,0,0,0,62,53,81,78,83,83,86,85,138,138,162,121,164,163,156,132,170,101,150,92,92,92,114,91,91,77,109,110,216,204,308,214,412,412,395,387,607,510,12839,591,5775,1890]} 1. e4 {[%emt 0:00:03]} c5 {[%emt 0:00:06]} 2. Nf3 {[%emt 0:00:14]} d6 {[%emt 0:00:11]} 3. c4 {[%emt 1:31:43]} Bg4 {[%emt 0:05:12]} 4. Nc3 {[%emt 0:00:00]} Nc6 {[%emt 0:02:31]} 5. Be2 {[%emt 0:00:00]} Bxf3 {[%emt 0:03:45]} 6. Bxf3 {[%emt 0:00:00] B50: Sicilian: 2...d6, Miscellaneous.} g6 {[%emt 0:02:50]} 7. d3 {[%emt 0:00:00]} Bg7 {[%emt 0:01:37]} 8. Be3 {[%emt 0:00:00] The position is equal.} e6 {[%emt 0:08:56]} 9. Qd2 {[%emt 0:00:00]} Nd4 {[%emt 0:03:37]} 10. Bd1 {[%emt 0:00:00]} Ne7 {[%emt 0:05:47]} 11. O-O {[%emt 0:00:00]} O-O {[%emt 0:01:24]} 12. Rb1 {[%emt 0:00:00] [#]} d5 $146 {[%emt 0:07:07]} ({Predecessor:} 12... Nec6 13. a3 a6 14. b4 b6 15. f4 Rb8 16. b5 axb5 17. cxb5 Ne7 18. Ne2 Nxe2+ 19. Qxe2 {0-1 (63) Kochan,I (2249)-Oliynyk,V (2264) ICCF email 2014}) 13. cxd5 {[%emt 0:00:00]} exd5 {[%emt 0:01:09]} 14. Bg5 {[%emt 0:00:00]} f6 {[%emt 0:08:57]} 15. Be3 {[%emt 0:00:00]} dxe4 $1 {[%emt 0:06:14]} 16. dxe4 {[%emt 0:00:00] Threatens to win with b4.} f5 {[%emt 0:03:20]} 17. b4 {[%emt 0:00:00]} c4 {[%emt 0:07:49]} 18. Ba4 {[%emt 0:00:00] And now Rfd1 would win.} fxe4 {[%emt 0:05:19]} 19. Nxe4 {[%emt 0:00:00]} (19. Bxd4 $11 Qxd4 20. Qxd4 Bxd4 21. Nxe4) 19... Nef5 $1 $17 {[%emt 0:01:21]} 20. Bg5 {[%emt 0:00:00]} Qc7 {[%emt 0:02:23]} 21. Rfe1 {[%emt 0:00:00]} Ne6 {[%emt 0:06:28] Pair of Knights!} (21... h6 $17 22. Bf4 Qf7) 22. Qd5 {[%emt 0:00:00]} Qf7 {[%emt 0:02:04]} 23. Nd6 {[%emt 0:00:35]} Nxd6 {[%emt 0:01:55]} 24. Qxe6 {[%emt 0:00:12]} b5 {[%emt 0:05:04][%cal Bb7b5,Bb5a4,Ba4a3][%mdl 32]} (24... Bd4 $5 {[%cal Rd4f2]} 25. Qxf7+ (25. Qxd6 $2 Bxf2+ 26. Kh1 Bxe1 $19) 25... Rxf7 $15) 25. Be7 {[%emt 0:02:58]} (25. Bd1 $15) 25... Qxe6 {[%emt 0:02:50]} 26. Rxe6 {[%emt 0:00:07]} bxa4 {[%emt 0:00:12]} 27. Bxd6 {[%emt 0:01:09]} Rfe8 {[%emt 0:01:16]} 28. Rxe8+ {[%emt 0:01:34]} Rxe8 $15 {[%emt 0:00:01][%mdl 4096] Endgame KRB-KRB} 29. Kf1 {[%emt 0:00:26]} a3 {[%emt 0:02:51]} (29... c3 $5 {[%cal Rg7h6]} 30. Rc1 Rd8 $17) 30. Rc1 {[%emt 0:01:44]} Rd8 {[%emt 0:01:45]} 31. Bf4 {[%emt 0:01:02]} Rc8 {[%emt 0:01:02]} 32. Rc2 {[%emt 0:00:35]} c3 {[%emt 0:00:43]} 33. Bc1 {[%emt 0:00:16]} Rc4 {[%emt 0:00:38]} (33... Bf8 $11 {was preferrable.}) 34. Bxa3 $14 {[%emt 0:00:21]} Bf8 {[%emt 0:00:20]} ({Better is} 34... Rh4 $14) 35. Bc1 {[%emt 0:02:49]} (35. Ke2 $1 $16) 35... Bxb4 $11 {[%emt 0:00:09]} 36. Ke2 {[%emt 0:00:06]} Rd4 {[%emt 0:00:54]} 37. Be3 {[%emt 0:01:00]} Rd7 {[%emt 0:00:11]} 38. Kf3 {[%emt 0:00:38]} Rc7 {[%emt 0:00:50]} (38... a5 $11) 39. Ke4 {[%emt 0:00:15]} Kf7 {[%emt 0:00:37]} 40. Bd4 {[%emt 0:00:43]} Ke6 {[%emt 0:00:31]} 41. Kd3 {[%emt 0:30:18]} ({Of course not} 41. a3 $6 Bxa3 42. Rxc3 Rxc3 43. Bxc3 Bc5 $11) 41... Kd5 {[%emt 0:04:37]} 42. Bxc3 {[%emt 0:00:00]} Bxc3 {[%emt 0:00:46]} ({Black should try} 42... Be7) 43. Rxc3 $16 {[%emt 0:00:00] KR-KR} Rb7 {[%emt 0:00:23]} 44. Rb3 {[%emt 0:00:00] Prevents Rb2.} Re7 {[%emt 0:00:28]} 45. h4 {[%emt 0:00:00]} Kc6 {[%emt 0:01:20]} 46. g3 {[%emt 0:00:00]} Re1 {[%emt 0:00:42]} 47. Kd2 {[%emt 0:00:00]} (47. Ra3 $18) 47... Re4 {[%emt 0:00:53]} ({Black should play} 47... Ra1) 48. Re3 {[%emt 0:00:00]} (48. Rc3+ $142 Kb6 49. f3) 48... Ra4 {[%emt 0:00:12]} 49. a3 {[%emt 0:00:00]} Kd6 {[%emt 0:00:06] Inhibits Re7.} 50. Ke2 {[%emt 0:00:00]} Ra5 {[%emt 0:00:28]} 51. Kf3 {[%emt 0:00:00]} Rf5+ {[%emt 0:00:29]} 52. Kg2 $1 {[%emt 0:00:00] Black must now prevent Rf3.} Rc5 {[%emt 0:01:06]} (52... Ra5 $16 {keeps fighting.}) 53. Rb3 $1 $18 {[%emt 0:00:00] Rb7 is the strong threat.} Kc6 {[%emt 0:00:51] [#] Prevents Rb7.} (53... Rc7 $142 54. Rb5 Kc6) 54. Rf3 $1 {[%emt 0:00:00]} a5 $2 {[%emt 0:02:23] [#]} (54... Kd6 {might work better.} 55. Rf6+ Kd5) 55. Rf7 $1 {[%emt 0:00:00]} Rh5 {[%emt 0:01:26]} 56. Kh3 {[%emt 0:00:00] aiming for g4.} Kb5 {[%emt 0:01:46]} (56... a4 $142 57. Ra7 Kb6 58. Rxa4 Re5) 57. g4 {[%emt 0:00:00][%cal Bg3g4,Bg4g5][%mdl 32] White is clearly winning.} Rh6 {[%emt 0:01:01]} (57... Rc5 $142 58. Rxh7 Rc3+ 59. Kg2 a4) 58. Rf4 {[%emt 0:00:00]} (58. Rf6 $142 {White wants to mate with g5.} Ka4 59. Ra6) 58... Kb6 {[%emt 0:00:29]} 59. g5 {[%emt 0:00:00] Weighted Error Value: White=0.25 (precise) /Black=0.26 (precise)} 1-0